[Event "TUR-ch Veterans 2019"]
[Site "Belek"]
[Date "2019.01.26"]
[Round "7.2"]
[White "Aysoy, Veysi"]
[Black "Korkmaz, Turhan"]
[Result "1-0"]
[ECO "B83"]
[WhiteElo "1933"]
[BlackElo "1977"]
[Annotator "NA"]
[PlyCount "79"]
[EventDate "2019.01.20"]
[EventType "swiss"]
[EventCountry "TUR"]
[SourceTitle "playchess.com"]
[Source "ChessBase"]
[SourceQuality "1"]
[TimeControl "5400+30"]

1. e4 {[%emt 0:00:30]} c5 {[%emt 0:01:30]} 2. Nc3 {[%emt 0:00:30]} d6 {[%emt 0:01:30]} 3. Nge2 {[%emt 0:01:30]} Nc6 {[%emt 0:01:30]} 4. d4 {[%emt 0:00:30]} cxd4 $1 {[%emt 0:00:30]} 5. Nxd4 {[%emt 0:00:30]} Nf6 {[%emt 0:01:30]} 6. Be2 {[%emt 0:05:30]} e6 {[%emt 0:01:30]} 7. Be3 {[%emt 0:02:30]} Be7 {[%emt 0:02:30] LiveBook: 827 Games} 8. O-O {[%emt 0:01:30]} O-O {[%emt 0:01:30]} 9. g3 $146 {[%emt 0:05:30] B83: Sicilian Scheveningen: 6 Be2, lines without ...a6} ({Predecessor:} 9. Qd2 a6 10. a4 Qc7 11. f4 {½-½ (11) Neiksans,A (2607)-Van Wely,L (2653) Jurmala 2016}) 9... e5 {[%emt 0:06:30]} 10. Nb3 {[%emt 0:03:30]} Be6 {[%emt 0:14:30]} 11. f4 {[%emt 0:04:30]} Bh3 {[%emt 0:14:30]} 12. Rf2 {[%emt 0:03:30]} Qd7 {[%emt 0:05:30]} 13. f5 {[%emt 0:08:30]} g6 {[%emt 0:00:30]} (13... d5 $14 14. exd5 Nb4) 14. Qd3 {[%emt 0:11:30]} a5 {[%emt 0:11:30]} 15. Bg5 {[%emt 0:08:30]} Nb4 {[%emt 0:02:30]} 16. Qd2 {[%emt 0:02:30]} Rfc8 {[%emt 0:06:30]} 17. Bxf6 {[%emt 0:01:30]} Bxf6 {[%emt 0:01:30]} 18. fxg6 {[%emt 0:05:30]} Bg7 {[%emt 0:01:30]} 19. gxf7+ {[%emt 0:03:30]} Kh8 {[%emt 0:00:30]} 20. a3 {[%emt 0:00:30]} Nc6 {[%emt 0:10:07]} 21. Nd5 {[%emt 0:02:30]} Qd8 {[%emt 0:01:54]} 22. a4 {[%emt 0:01:30]} Nb4 {[%emt 0:00:36]} 23. Nxb4 {[%emt 0:04:30]} axb4 {[%emt 0:00:07]} 24. a5 {[%emt 0:02:01]} Qc7 {[%emt 0:01:56]} 25. Bf1 {[%emt 0:00:41]} Be6 {[%emt 0:01:01]} 26. Qxb4 {[%emt 0:01:49]} Bxf7 {[%emt 0:00:08]} 27. a6 {[%emt 0:03:03]} bxa6 {[%emt 0:00:37]} 28. Rxa6 {[%emt 0:05:37]} Rxa6 {[%emt 0:00:57]} 29. Bxa6 {[%emt 0:00:01]} Rb8 {[%emt 0:00:08]} 30. Rxf7 {[%emt 0:03:40]} Qd8 {[%emt 0:03:08]} 31. Rb7 {[%emt 0:00:56]} Rc8 {[%emt 0:00:31]} 32. Rxg7 {[%emt 0:00:46]} Kxg7 {[%emt 0:02:38]} 33. Bxc8 {[%emt 0:00:06]} Qxc8 {[%emt 0:00:16]} 34. Qxd6 {[%emt 0:02:17]} Qxc2 {[%emt 0:00:35]} 35. Qxe5+ {[%emt 0:00:18]} Kh6 {[%emt 0:00:20]} 36. Nd4 {[%emt 0:01:37]} Qd1+ {[%emt 0:01:57]} 37. Kg2 {[%emt 0:00:24]} Qd2+ {[%emt 0:00:54]} 38. Kh3 {[%emt 0:01:05]} Qd3 {[%emt 0:00:39]} 39. Qf6+ {[%emt 0:01:38]} Kh5 {[%emt 0:00:08]} 40. Qf3+ {[%emt 0:00:13]} 1-0

[Event "TUR-ch Veterans 2019"]
[Site "Belek"]
[Date "2019.01.26"]
[Round "7.3"]
[White "Onem, Cem"]
[Black "Uzuner, Tufan Can"]
[Result "0-1"]
[ECO "A59"]
[WhiteElo "1840"]
[BlackElo "1889"]
[Annotator "NA"]
[PlyCount "110"]
[EventDate "2019.01.20"]
[EventType "swiss"]
[EventCountry "TUR"]
[SourceTitle "playchess.com"]
[Source "ChessBase"]
[SourceQuality "1"]
[TimeControl "5400+30"]

1. d4 {[%emt 0:00:30]} Nf6 {[%emt 0:00:30]} 2. c4 {[%emt 0:01:30]} c5 {[%emt 0:00:30]} 3. d5 {[%emt 0:00:30]} b5 {[%emt 0:00:30]} 4. cxb5 {[%emt 0:00:00]} a6 {[%emt 0:00:00]} 5. bxa6 {[%emt 0:00:00]} g6 {[%emt 0:00:00]} 6. Nc3 {[%emt 0:00:30]} Bxa6 {[%emt 0:00:30]} 7. e4 {[%emt 0:00:00]} Bxf1 {[%emt 0:00:30]} 8. Kxf1 {[%emt 0:02:00] LiveBook: 1170 Games} d6 {[%emt 0:00:00]} 9. g3 {[%emt 0:00:30]} Bg7 {[%emt 0:00:00]} 10. Kg2 {[%emt 0:00:00]} O-O {[%emt 0:00:30]} 11. Nge2 {[%emt 0:00:00]} Nbd7 {[%emt 0:01:30]} 12. Bf4 {[%emt 0:01:30] A59: Benko/Volga Gambit: White castles by hand} (12. Qc2 Ra6 13. Rd1 Qa8 14. Rb1 e6 15. Nf4 exd5 16. Nfxd5 Nxd5 17. Nxd5 Rxa2 18. Ne7+ Kh8 19. Rxd6 Ne5 20. Rd5 {½-½ (34) Oms Pallisse,J (2528)-Alsina Leal,D (2527) Barcelona 2010}) 12... Qb6 {[%emt 0:02:30]} 13. Qc2 {[%emt 0:00:30]} Rfb8 {[%emt 0:02:30]} 14. Rhb1 {[%emt 0:05:30]} Ng4 $146 {[%emt 0:16:30]} ({Predecessor:} 14... Ne8 15. a4 Nc7 16. Qd2 Ne5 17. b3 Nd7 18. h4 h5 19. Bh6 Bh8 20. Bg5 Nf6 {½-½ (67) Wan,M (1768)-Jing,W (1595) Jiaxing 2017}) 15. h3 {[%emt 0:09:30]} Nge5 {[%emt 0:00:00]} 16. b3 {[%emt 0:02:30]} Qa6 {[%emt 0:02:00]} 17. Rd1 {[%emt 0:20:30]} Nb6 {[%emt 0:11:30]} (17... c4 $11) 18. Rab1 {[%emt 0:10:30]} Qb7 {[%emt 0:12:30]} 19. Be3 {[%emt 0:00:30]} Ned7 {[%emt 0:02:30]} 20. a4 {[%emt 0:18:30]} Ra6 {[%emt 0:10:30]} 21. Ra1 {[%emt 0:02:30]} Na8 {[%emt 0:00:30]} 22. Rdb1 {[%emt 0:01:30]} Nc7 {[%emt 0:01:30]} 23. Ra2 {[%emt 0:03:28]} Rb6 {[%emt 0:07:30]} 24. Ra3 {[%emt 0:00:17]} e6 {[%emt 0:07:31]} 25. dxe6 {[%emt 0:03:19]} fxe6 {[%emt 0:00:29]} 26. f3 {[%emt 0:00:55]} d5 {[%emt 0:01:47]} 27. exd5 {[%emt 0:01:57]} exd5 {[%emt 0:00:30]} 28. Bf4 {[%emt 0:00:18]} Ne5 {[%emt 0:03:01]} 29. a5 {[%emt 0:01:55]} Rc6 {[%emt 0:08:03]} 30. Ra4 {[%emt 0:04:55]} Ra6 {[%emt 0:00:17]} 31. Bxe5 {[%emt 0:02:03]} Bxe5 {[%emt 0:00:30]} 32. Qd3 {[%emt 0:00:18]} Qc6 {[%emt 0:01:32]} 33. Nf4 {[%emt 0:05:00]} Bxf4 {[%emt 0:01:58]} 34. gxf4 {[%emt 0:00:56]} d4 {[%emt 0:03:05]} 35. Qc4+ {[%emt 0:00:32]} Kg7 {[%emt 0:00:15]} 36. Ne4 {[%emt 0:00:10]} Rb5 {[%emt 0:02:53]} 37. b4 {[%emt 0:01:49]} Nd5 {[%emt 0:00:17]} 38. Kg3 {[%emt 0:00:32]} Ne3 {[%emt 0:00:51]} 39. Qd3 {[%emt 0:00:29]} Nf5+ {[%emt 0:00:30]} 40. Kf2 {[%emt 0:00:30]} c4 {[%emt 0:00:30]} 41. Qd2 {[%emt 0:00:30]} Qd5 {[%emt 0:00:30]} 42. Nc5 {[%emt 0:00:41]} Ra7 {[%emt 0:00:57]} 43. a6 $19 {[%emt 0:00:12]} (43. Re1 $17) 43... Kh6 {[%emt 0:00:44]} 44. Re1 {[%emt 0:00:51]} d3 {[%emt 0:00:35]} 45. Re4 {[%emt 0:00:43]} Rxc5 {[%emt 0:00:26]} 46. bxc5 {[%emt 0:00:18]} c3 {[%emt 0:00:35]} 47. Qxc3 {[%emt 0:01:15]} d2 {[%emt 0:00:02]} 48. Ra1 {[%emt 0:00:31]} d1=Q {[%emt 0:00:23]} 49. Rxd1 {[%emt 0:00:03]} Qxd1 {[%emt 0:00:02]} 50. Qc4 {[%emt 0:00:39]} Qh1 {[%emt 0:01:37]} 51. c6 {[%emt 0:00:30]} Qh2+ {[%emt 0:00:25]} 52. Ke1 {[%emt 0:00:14]} Nd6 {[%emt 0:00:36]} 53. Qd3 {[%emt 0:00:50]} Nxe4 {[%emt 0:00:19]} 54. fxe4 {[%emt 0:00:21]} Qxf4 {[%emt 0:00:16]} 55. Qc4 {[%emt 0:00:26]} Re7 {[%emt 0:00:15]} 0-1

[Event "TUR-ch Veterans 2019"]
[Site "Belek"]
[Date "2019.01.26"]
[Round "7.4"]
[White "Buker, Muhittin"]
[Black "Ozates, Veysel"]
[Result "1-0"]
[ECO "D05"]
[WhiteElo "1978"]
[BlackElo "1550"]
[Annotator "NA RC"]
[PlyCount "63"]
[EventDate "2019.01.20"]
[EventType "swiss"]
[EventCountry "TUR"]
[SourceTitle "playchess.com"]
[Source "ChessBase"]
[SourceQuality "1"]
[TimeControl "5400+30"]

{[%evp 8,51,36,18,32767,32767,16,32767,32767,32767,32767,32767,21,14,20,10,8,0,28,0,9,11,27,15,33,-14,32767,32767,32767,32767,32767,32767,-32,-33,32767,32767,32767,32767,-30,-54,-31,-45,-28,-44,70,62]} 1. d4 {[%emt 0:00:30]} d5 {[%emt 0:00:30]} 2. Nf3 {[%emt 0:00:00]} Nf6 {[%emt 0:00:00]} 3. e3 {[%emt 0:00:00]} e6 {[%emt 0:00:00]} 4. Bd3 {[%emt 0:00:30]} c6 {[%emt 0:00:30] LiveBook: 18 Games} 5. b3 {[%emt 0:00:00] D05: Colle System with ...e6} Nbd7 {[%emt 0:00:30]} 6. Bb2 {[%emt 0:00:00]} Be7 {[%emt 0:00:30]} 7. Nbd2 {[%emt 0:00:00]} O-O {[%emt 0:00:30]} 8. O-O {[%emt 0:00:00]} b6 {[%emt 0:00:30]} 9. Ne5 {[%emt 0:00:30]} (9. Qe2 Bb7 10. Ne5 Nxe5 11. dxe5 Nd7 12. c4 {1-0 (53) Adly,A (2589)-Thorhallsson,T (2426) Tromsoe 2014}) 9... Nxe5 {[%emt 0:01:30]} 10. dxe5 {[%emt 0:00:00]} Nd7 {[%emt 0:00:30]} 11. Qh5 $146 {[%emt 0:02:00]} g6 {[%emt 0:00:30]} 12. Qh6 {[%emt 0:00:30]} Re8 {[%emt 0:00:30]} 13. f4 {[%emt 0:00:30]} Bf8 {[%emt 0:00:30]} 14. Qh3 {[%emt 0:00:30]} Bg7 {[%emt 0:00:00]} 15. Nf3 {[%emt 0:03:30]} Bb7 {[%emt 0:02:00]} 16. Ng5 {[%emt 0:01:30]} h6 {[%emt 0:03:30]} 17. Nf3 {[%emt 0:00:30]} Nc5 {[%emt 0:00:00]} 18. Nd4 {[%emt 0:00:30]} Nxd3 {[%emt 0:01:00]} 19. cxd3 {[%emt 0:00:30]} a6 {[%emt 0:01:30]} 20. Nf3 {[%emt 0:01:30]} Rc8 {[%emt 0:03:30]} 21. Rac1 {[%emt 0:00:00]} c5 {[%emt 0:00:00]} 22. Qg3 {[%emt 0:00:00]} Qd7 {[%emt 0:02:00]} 23. h3 {[%emt 0:00:30]} Qb5 {[%emt 0:00:30]} 24. Rfd1 {[%emt 0:00:30]} Qa5 {[%emt 0:09:30]} 25. a4 {[%emt 0:02:30]} Qb4 $14 {[%emt 0:04:30]} (25... b5 $15) 26. Nd2 {[%emt 0:00:30]} d4 {[%emt 0:07:30]} 27. Rc4 {[%emt 0:02:30]} Qa5 {[%emt 0:00:30]} 28. exd4 {[%emt 0:00:30]} Bd5 {[%emt 0:00:30]} 29. Bc3 {[%emt 0:00:30]} Bxc4 {[%emt 0:02:30]} 30. Bxa5 {[%emt 0:00:30]} bxa5 {[%emt 0:00:30]} 31. Nxc4 {[%emt 0:00:00]} cxd4 {[%emt 0:00:30]} 32. Nd6 {[%emt 0:00:00]} 1-0

[Event "TUR-ch Veterans 2019"]
[Site "Belek"]
[Date "2019.01.26"]
[Round "7.5"]
[White "Tozaki, Halil"]
[Black "Azizoglu, Ayhan"]
[Result "1/2-1/2"]
[ECO "E61"]
[WhiteElo "1930"]
[BlackElo "1861"]
[Annotator "NA"]
[PlyCount "134"]
[EventDate "2019.01.20"]
[EventType "swiss"]
[EventCountry "TUR"]
[SourceTitle "playchess.com"]
[Source "ChessBase"]
[SourceQuality "1"]
[TimeControl "5400+30"]

1. Nf3 {[%emt 0:00:30]} Nf6 {[%emt 0:00:30]} 2. d4 {[%emt 0:00:00]} g6 {[%emt 0:00:30]} 3. c4 {[%emt 0:00:00]} Bg7 {[%emt 0:00:30]} 4. Nc3 {[%emt 0:00:30]} O-O {[%emt 0:00:30]} 5. Bf4 {[%emt 0:00:30]} d6 {[%emt 0:00:30]} 6. e3 {[%emt 0:00:30]} Nc6 {[%emt 0:01:30] LiveBook: 35 Games} 7. d5 {[%emt 0:00:30] E61: King's Indian: Early deviations for White, including Smyslov System} (7. h3 Nd7 8. Be2 h6 9. O-O e5 10. Bh2 Re8 11. Rc1 exd4 12. Nxd4 Nde5 13. Nf3 a5 14. Qd2 Nxf3+ 15. Bxf3 {0-1 (78) Georgiev,K (2623)-Melkumyan,H (2633) Riadh 2017}) 7... e5 {[%emt 0:00:30]} 8. Bg5 {[%emt 0:01:30]} Ne7 {[%emt 0:02:30]} 9. e4 {[%emt 0:03:30]} h6 {[%emt 0:02:30]} 10. Bd2 $146 {[%emt 0:01:30]} ({Predecessor:} 10. Be3 Nd7 11. Qd2 Kh7 12. Bd3 f5 13. exf5 Nxf5 14. h4 Nxe3 15. Qxe3 {1-0 (34) Wojciech,D (1800)-Lewandowski,A (1800) Wroclaw 2004}) 10... Ne8 {[%emt 0:02:30]} 11. Bd3 {[%emt 0:04:30]} f5 {[%emt 0:01:30]} 12. h3 {[%emt 0:00:30]} Nf6 {[%emt 0:04:30]} 13. Qc2 {[%emt 0:01:30]} Kh7 {[%emt 0:33:30]} 14. O-O-O {[%emt 0:04:30]} f4 {[%emt 0:07:30]} 15. Kb1 {[%emt 0:02:30]} Bd7 {[%emt 0:00:30]} 16. Nh2 {[%emt 0:02:30]} (16. Rdf1 $16) 16... g5 {[%emt 0:01:30]} (16... c6 $11 {keeps the balance.}) 17. f3 {[%emt 0:03:30]} Ng6 {[%emt 0:01:30]} 18. Ng4 {[%emt 0:01:30]} h5 {[%emt 0:01:30]} 19. Nxf6+ {[%emt 0:01:30]} Bxf6 {[%emt 0:00:30]} 20. Rdg1 {[%emt 0:05:30]} Kg7 {[%emt 0:04:30]} 21. Be2 {[%emt 0:03:30]} Rh8 {[%emt 0:01:30]} 22. Be1 {[%emt 0:03:30]} Rh7 {[%emt 0:00:30]} 23. Bf2 {[%emt 0:02:30]} a6 {[%emt 0:00:30]} 24. Qd1 {[%emt 0:05:30]} Qe7 {[%emt 0:00:30]} 25. Qf1 {[%emt 0:06:30]} Rah8 {[%emt 0:00:30]} 26. Qd1 {[%emt 0:00:30]} Qd8 {[%emt 0:00:30]} 27. a3 {[%emt 0:00:30]} Qc8 {[%emt 0:00:30]} 28. Ka1 {[%emt 0:02:30]} Ne7 {[%emt 0:00:30]} 29. Qf1 {[%emt 0:01:30]} Kf7 {[%emt 0:02:30]} 30. Qd1 {[%emt 0:01:30]} Ng8 {[%emt 0:00:30]} 31. Qf1 {[%emt 0:03:30]} Nh6 {[%emt 0:00:30]} 32. c5 {[%emt 0:00:30]} dxc5 {[%emt 0:04:30]} 33. Bxc5 {[%emt 0:00:30]} g4 {[%emt 0:00:30]} 34. hxg4 {[%emt 0:00:30]} hxg4 {[%emt 0:00:30]} 35. Bc4 {[%emt 0:02:30]} g3 {[%emt 0:03:30]} 36. d6+ {[%emt 0:01:30]} Kg7 {[%emt 0:00:00]} 37. Nd5 {[%emt 0:04:30]} cxd6 {[%emt 0:02:00]} 38. Bxd6 {[%emt 0:01:30]} Nf7 {[%emt 0:00:30]} 39. Rxh7+ {[%emt 0:00:30]} Rxh7 {[%emt 0:00:30]} 40. Nxf6 {[%emt 0:05:30]} Kxf6 {[%emt 0:00:30]} 41. Bxf7 {[%emt 0:01:30]} Rxf7 {[%emt 0:01:09]} 42. Rh1 {[%emt 0:01:30]} Ke6 {[%emt 0:05:54]} 43. Rh6+ {[%emt 0:01:30]} Rf6 {[%emt 0:00:20]} 44. Qh1 {[%emt 0:01:30]} Qd8 {[%emt 0:04:27]} 45. Rh8 {[%emt 0:08:31]} Be8 {[%emt 0:05:07]} 46. Bb4 {[%emt 0:00:41]} Kd7 {[%emt 0:00:48]} 47. Qd1+ {[%emt 0:06:52]} Kc8 {[%emt 0:00:30]} 48. Qxd8+ {[%emt 0:00:30]} Kxd8 {[%emt 0:00:30]} 49. Bc3 {[%emt 0:00:30]} Re6 {[%emt 0:00:30]} 50. Rh7 {[%emt 0:00:14]} Bb5 {[%emt 0:00:42]} 51. Rh1 {[%emt 0:01:08]} Kd7 {[%emt 0:01:03]} 52. Kb1 {[%emt 0:00:35]} Kc6 {[%emt 0:00:06]} 53. b3 {[%emt 0:00:43]} b6 {[%emt 0:00:35]} 54. Kc2 {[%emt 0:00:18]} a5 {[%emt 0:00:16]} 55. Kb2 {[%emt 0:00:43]} a4 {[%emt 0:00:14]} 56. b4 {[%emt 0:00:50]} Bc4 {[%emt 0:00:16]} 57. Kc2 {[%emt 0:01:57]} Kb5 {[%emt 0:00:13]} 58. Rh5 {[%emt 0:00:38]} Bf1 {[%emt 0:00:17]} 59. Rxe5+ {[%emt 0:00:58]} Rxe5 {[%emt 0:00:20]} 60. Bxe5 {[%emt 0:00:07]} Bxg2 {[%emt 0:00:09]} 61. Bxf4 {[%emt 0:00:14]} Kc4 {[%emt 0:01:08]} 62. e5 {[%emt 0:00:39]} Bxf3 {[%emt 0:00:45]} 63. Bxg3 {[%emt 0:00:08]} Be4+ {[%emt 0:00:25]} 64. Kb2 {[%emt 0:00:03]} Bf5 {[%emt 0:00:19]} 65. Bf2 $11 {[%emt 0:00:56]} b5 {[%emt 0:00:10]} 66. Bc5 {[%emt 0:00:08]} Be6 {[%emt 0:00:08]} 67. Bd6 {[%emt 0:00:19]} Kd5 {[%emt 0:00:55]} 1/2-1/2

[Event "TUR-ch Veterans 2019"]
[Site "Belek"]
[Date "2019.01.26"]
[Round "7.6"]
[White "Ozmen, Halil Nejat"]
[Black "Guner, Bulent"]
[Result "0-1"]
[ECO "A59"]
[WhiteElo "1802"]
[BlackElo "1987"]
[Annotator "NA"]
[PlyCount "98"]
[EventDate "2019.01.20"]
[EventType "swiss"]
[EventCountry "TUR"]
[SourceTitle "playchess.com"]
[Source "ChessBase"]
[SourceQuality "1"]
[TimeControl "5400+30"]

1. d4 {[%emt 0:00:30]} Nf6 {[%emt 0:00:30]} 2. c4 {[%emt 0:01:30]} c5 {[%emt 0:00:30]} 3. d5 {[%emt 0:02:30]} b5 {[%emt 0:00:30]} 4. cxb5 {[%emt 0:00:00]} a6 {[%emt 0:00:00]} 5. bxa6 {[%emt 0:00:00]} g6 {[%emt 0:00:00]} 6. Nc3 {[%emt 0:00:00]} Bxa6 {[%emt 0:00:30]} 7. Nf3 {[%emt 0:00:00]} Bg7 {[%emt 0:00:30]} 8. e4 {[%emt 0:03:30]} Bxf1 {[%emt 0:01:30]} 9. Kxf1 {[%emt 0:00:00]} d6 {[%emt 0:00:30]} 10. g3 {[%emt 0:00:00]} Nbd7 {[%emt 0:00:30]} 11. h3 {[%emt 0:00:30]} O-O {[%emt 0:01:30]} 12. Kg2 {[%emt 0:00:00]} Ra6 {[%emt 0:01:30] LiveBook: 143 Games} 13. Re1 {[%emt 0:00:00]} Qa8 {[%emt 0:01:30]} 14. a4 {[%emt 0:01:30] A59: Benko/Volga Gambit: White castles by hand} (14. Bf4 Nh5 15. Bg5 h6 16. Bd2 Rb8 17. Qc2 Nhf6 18. b3 Ne8 19. a4 Nc7 20. Rab1 Rab6 21. Be3 Qa5 {1-0 (38) Van Wely,L (2679)-Bologan,V (2690) Bastia 2010}) 14... e6 {[%emt 0:03:30] [#]} 15. Ra3 $146 {[%emt 0:02:30]} (15. dxe6 $1 $16 fxe6 16. Nb5) ({Predecessor:} 15. Nb5 Ne8 16. g4 exd5 17. exd5 Ndf6 18. Nc3 Nc7 19. Re3 Nfxd5 20. Nxd5 Nxd5 21. Rd3 Nb4 22. Re3 c4 23. Kg1 Nd3 24. Rxd3 cxd3 25. Qxd3 Rxa4 26. Rxa4 Qxa4 27. Qxd6 Qa1 {0-1 (27) Borisov,A (1996)-Vasenev,S (2284) Kazan 2010}) 15... exd5 {[%emt 0:02:30]} 16. exd5 {[%emt 0:03:30]} (16. Nxd5 $11 Nxd5 17. Qxd5) 16... Nb6 {[%emt 0:07:30]} 17. Kg1 {[%emt 0:00:30]} Nbxd5 {[%emt 0:06:30]} 18. Nxd5 {[%emt 0:03:30]} Nxd5 {[%emt 0:00:00]} 19. Ng5 {[%emt 0:06:30]} Nb4 {[%emt 0:05:00]} 20. Ne4 {[%emt 0:06:30]} Qc6 {[%emt 0:08:30]} 21. Nc3 {[%emt 0:05:30]} c4 {[%emt 0:03:30]} 22. Re2 {[%emt 0:07:30]} Nd3 {[%emt 0:04:30]} 23. Nb5 {[%emt 0:21:30]} Rc8 {[%emt 0:13:30]} 24. Rc2 {[%emt 0:01:30]} Nxc1 {[%emt 0:07:30]} 25. Qxc1 {[%emt 0:00:30]} d5 {[%emt 0:00:30]} 26. Qf4 {[%emt 0:02:30]} Qc5 {[%emt 0:05:30]} 27. Rf3 {[%emt 0:00:30]} Rf6 {[%emt 0:00:30]} 28. Qe3 {[%emt 0:04:30]} Rxf3 {[%emt 0:03:30]} 29. Qxf3 {[%emt 0:00:30]} d4 {[%emt 0:00:30]} 30. Na3 {[%emt 0:01:30]} Qb4 {[%emt 0:02:30]} 31. Qd5 {[%emt 0:00:30]} c3 {[%emt 0:00:35]} 32. a5 {[%emt 0:05:30]} Rf8 {[%emt 0:04:40]} 33. Kg2 {[%emt 0:04:25]} cxb2 {[%emt 0:00:32]} 34. Nb1 {[%emt 0:00:25]} d3 {[%emt 0:03:32]} 35. Qxd3 {[%emt 0:00:15]} Qxa5 {[%emt 0:00:02]} 36. Re2 {[%emt 0:07:04]} Qa8+ {[%emt 0:01:25]} 37. f3 {[%emt 0:00:44]} Rd8 {[%emt 0:00:52]} 38. Qb3 {[%emt 0:00:59]} Rb8 {[%emt 0:01:56]} 39. Qd3 {[%emt 0:00:51]} Qc6 {[%emt 0:01:15]} 40. h4 {[%emt 0:00:15]} h5 {[%emt 0:00:48]} 41. Rc2 {[%emt 0:00:32]} Qb6 {[%emt 0:02:00]} 42. Re2 {[%emt 0:02:06]} Rd8 {[%emt 0:00:30]} 43. Qc2 {[%emt 0:00:30]} Bf6 $19 {[%emt 0:01:46]} 44. Rd2 {[%emt 0:00:21]} Rxd2+ {[%emt 0:02:00]} 45. Qxd2 {[%emt 0:00:46]} Qd4 {[%emt 0:00:14]} 46. Qe1 {[%emt 0:00:52]} Qd3 {[%emt 0:00:31]} 47. Qe8+ {[%emt 0:02:15]} Kg7 {[%emt 0:00:11]} 48. Qe1 {[%emt 0:00:03]} Qc2+ {[%emt 0:00:41]} 49. Kh3 {[%emt 0:00:30]} Qc1 {[%emt 0:00:30]} 0-1

[Event "TUR-ch Veterans 2019"]
[Site "Belek"]
[Date "2019.01.26"]
[Round "7.7"]
[White "Hatipoglu, Metin"]
[Black "Tofan, Ibrahim"]
[Result "0-1"]
[ECO "A40"]
[WhiteElo "1680"]
[BlackElo "2070"]
[Annotator "NA"]
[PlyCount "118"]
[EventDate "2019.01.20"]
[EventType "swiss"]
[EventCountry "TUR"]
[SourceTitle "playchess.com"]
[Source "ChessBase"]
[SourceQuality "1"]
[TimeControl "5400+30"]

1. e4 {[%emt 0:00:30]} g6 {[%emt 0:00:30]} 2. d4 {[%emt 0:00:30]} Bg7 {[%emt 0:00:30]} 3. c4 {[%emt 0:00:00]} e6 {[%emt 0:01:30]} 4. Nc3 {[%emt 0:00:00]} Ne7 {[%emt 0:00:00] A40: Unusual replies to 1 d4} 5. Nf3 {[%emt 0:01:30]} d5 {[%emt 0:01:00] LiveBook: 44 Games} 6. Bd3 {[%emt 0:08:30]} dxc4 $146 {[%emt 0:01:30]} ({Predecessor:} 6... dxe4 7. Bxe4 Nbc6 8. d5 exd5 9. cxd5 Ne5 10. Nxe5 Bxe5 11. O-O O-O 12. Re1 {½-½ (66) Ragger,M (2632)-Malakhov,V (2694) Dubai 2014}) 7. Bxc4 {[%emt 0:01:30]} a6 {[%emt 0:00:00]} 8. O-O {[%emt 0:03:30]} b5 {[%emt 0:00:00]} 9. Bb3 {[%emt 0:00:30]} Bb7 {[%emt 0:00:30]} 10. Re1 {[%emt 0:01:30]} O-O {[%emt 0:00:30]} 11. Bf4 {[%emt 0:01:30]} Nd7 {[%emt 0:03:30]} 12. Qd2 {[%emt 0:04:30]} c5 {[%emt 0:02:30]} 13. Bh6 {[%emt 0:05:30]} cxd4 {[%emt 0:07:30]} 14. Bxg7 {[%emt 0:01:30]} Kxg7 {[%emt 0:00:30]} 15. Qxd4+ {[%emt 0:01:30]} Nf6 {[%emt 0:00:00]} 16. Qe5 {[%emt 0:06:30]} Rc8 {[%emt 0:05:00]} 17. Rad1 {[%emt 0:06:30]} Qc7 {[%emt 0:01:30]} 18. Qxc7 {[%emt 0:05:30]} Rxc7 {[%emt 0:00:30]} 19. Nd2 {[%emt 0:00:30]} Nd7 {[%emt 0:00:30]} 20. f3 {[%emt 0:00:30]} Nc5 {[%emt 0:00:30]} 21. Bc2 {[%emt 0:00:30]} Nc6 {[%emt 0:00:30]} 22. Nf1 {[%emt 0:05:30]} Rfc8 {[%emt 0:13:30]} 23. Ne3 $11 {[%emt 0:01:30]} h5 {[%emt 0:01:30]} 24. Rd2 {[%emt 0:00:30]} Ne5 {[%emt 0:00:30]} 25. Red1 {[%emt 0:02:30]} g5 {[%emt 0:00:30]} 26. Kf2 {[%emt 0:04:30]} Bc6 {[%emt 0:02:30]} 27. Ne2 {[%emt 0:02:30]} b4 {[%emt 0:01:30]} 28. Nd4 {[%emt 0:00:30]} Ba4 {[%emt 0:03:30]} 29. b3 {[%emt 0:05:30]} Be8 {[%emt 0:14:30]} 30. g3 {[%emt 0:00:30]} Nc6 {[%emt 0:05:30]} 31. Nc4 {[%emt 0:01:30]} Nxd4 {[%emt 0:01:30]} 32. Rxd4 {[%emt 0:02:30]} Rb8 {[%emt 0:02:30]} 33. Ke3 {[%emt 0:01:30]} Bb5 {[%emt 0:01:30]} 34. Nd6 {[%emt 0:00:30]} a5 {[%emt 0:00:30]} 35. e5 {[%emt 0:09:48]} Nd7 {[%emt 0:16:28]} 36. Nxb5 {[%emt 0:00:30]} Rxb5 {[%emt 0:00:30]} 37. Rxd7 {[%emt 0:00:30]} Rxc2 {[%emt 0:00:30]} 38. f4 {[%emt 0:00:30]} Rbc5 {[%emt 0:00:30]} 39. R1d2 {[%emt 0:00:30]} Kg6 {[%emt 0:00:30]} 40. Rxc2 {[%emt 0:00:30]} Rxc2 {[%emt 0:00:30]} 41. Rd2 {[%emt 0:00:30]} gxf4+ {[%emt 0:00:30]} 42. gxf4 {[%emt 0:00:30]} Rxd2 {[%emt 0:00:30]} 43. Kxd2 {[%emt 0:00:30]} Kf5 {[%emt 0:00:30]} 44. Ke3 {[%emt 0:00:30]} Kg4 {[%emt 0:00:30]} 45. Ke4 {[%emt 0:00:30]} Kh3 {[%emt 0:00:30]} 46. Kf3 {[%emt 0:00:30]} Kxh2 {[%emt 0:00:30]} 47. Kf2 {[%emt 0:00:30]} Kh3 {[%emt 0:00:30]} 48. Kf3 {[%emt 0:00:30]} Kh4 {[%emt 0:00:30]} 49. f5 {[%emt 0:00:30]} Kg5 {[%emt 0:00:30]} 50. fxe6 {[%emt 0:00:30]} fxe6 {[%emt 0:00:30]} 51. Kg3 {[%emt 0:00:30]} h4+ {[%emt 0:00:30]} 52. Kh3 {[%emt 0:00:30]} Kh5 {[%emt 0:00:30]} 53. Kh2 {[%emt 0:00:30]} Kg4 {[%emt 0:00:30]} 54. Kg2 {[%emt 0:00:30]} h3+ {[%emt 0:00:30]} 55. Kh1 {[%emt 0:00:30]} Kg3 {[%emt 0:00:30]} 56. Kg1 {[%emt 0:00:30]} h2+ {[%emt 0:00:30]} 57. Kh1 {[%emt 0:00:30]} Kh3 {[%emt 0:00:30]} 58. a4 {[%emt 0:00:30]} bxa3 {[%emt 0:00:30]} 59. b4 {[%emt 0:00:30]} a2 {[%emt 0:00:30]} 0-1